bitfinex/quotes_SOLUSD_20250112
["timestamp","ask_amount","ask_price","bid_price","bid_amount"]
[1736643504603,57.82848554,187.73,187.63,20.0]
[1736643504806,57.82848554,187.73,187.63,28.83787089]
[1736643504983,57.82848554,187.73,187.63,8.83787089]
[1736643506413,20.0,187.69,187.6,8.83787089]
[1736643506587,51.43598554,187.7,187.59,8.83787089]
[1736643507195,51.43598554,187.7,187.6,8.83787089]
[1736643508716,51.43598554,187.7,187.61,8.83787089]
[1736643511219,51.43598554,187.69,187.61,8.83787089]
[1736643517634,51.43598554,187.69,187.6,8.83787089]
[1736643517934,51.43598554,187.68,187.57,8.83787089]
[1736643518311,51.43598554,187.68,187.56,91.43787089]
[1736643518312,6.5653,187.67,187.56,91.43787089]
[1736643518516,51.43598554,187.66,187.56,8.83787089]
[1736643519524,51.43598554,187.66,187.55,8.83787089]
[1736643519733,51.43598554,187.64,187.53,10.39987089]
[1736643519936,51.43598554,187.64,187.53,8.83787089]
[1736643520639,51.43598554,187.64,187.51,21.356806]
[1736643520931,51.43598554,187.64,187.52,8.83787089]
[1736643521308,20.0,187.61,187.52,8.83787089]
[1736643521735,6.5653,187.6,187.51,30.19467689]
[1736643522609,6.5653,187.6,187.51,8.83787089]
[1736643523622,6.5653,187.6,187.52,8.83787089]
[1736643523935,6.5653,187.6,187.53,8.83787089]
[1736643525538,6.5653,187.6,187.54,8.83787089]
[1736643525706,51.43598554,187.64,187.58,8.83787089]
[1736643526038,57.78698554,187.7,187.61,8.83787089]
[1736643527938,51.43598554,187.69,187.6,8.83787089]
[1736643531949,51.43598554,187.68,187.61,8.83787089]
[1736643532838,6.351,187.7,187.64,8.83787089]
[1736643533250,51.43598554,187.73,187.65,8.83787089]
[1736643533621,20.0,187.7,187.65,8.83787089]
[1736643533941,20.0,187.7,187.64,8.83787089]
[1736643536542,20.0,187.7,187.63,8.83787089]
[1736643537233,20.0,187.7,187.62,32.61475489]
[1736643538761,20.0,187.7,187.63,8.83787089]
[1736643539258,20.0,187.7,187.61,8.83787089]
[1736643540934,20.0,187.7,187.6,32.61475489]
[1736643541259,20.0,187.7,187.61,8.83787089]
[1736643541554,20.0,187.7,187.6,32.61475489]
[1736643544037,51.43598554,187.69,187.6,32.61475489]
[1736643545642,51.43598554,187.69,187.61,8.83787089]
[1736643545961,51.43598554,187.69,187.63,8.83787089]
[1736643546127,51.43598554,187.69,187.64,8.83787089]
[1736643546326,51.43598554,187.72,187.65,8.83787089]
[1736643546560,51.43598554,187.72,187.67,8.83787089]
[1736643548836,51.43598554,187.76,187.69,8.83787089]
[1736643549169,57.53228554,187.78,187.71,8.83787089]
[1736643549856,57.53228554,187.78,187.72,8.83787089]
[1736643550570,57.53228554,187.78,187.7,8.83787089]
[1736643550732,57.53228554,187.78,187.69,8.83787089]
[1736643551148,57.53228554,187.78,187.68,20.0]
[1736643551366,57.53228554,187.78,187.68,8.83787089]
[1736643553152,51.43598554,187.77,187.68,8.83787089]
[1736643555995,51.43598554,187.77,187.67,23.776884]
[1736643556285,20.0,187.74,187.66,91.43787089]
[1736643557675,20.0,187.74,187.66,82.6]
[1736643558460,51.43598554,187.73,187.63,91.43787089]
[1736643558684,51.43598554,187.73,187.63,82.6]
[1736643558870,6.4286,187.72,187.63,82.6]
[1736643559576,6.4286,187.72,187.61,8.83787089]
[1736643559779,6.4286,187.72,187.62,8.83787089]
[1736643560961,6.4286,187.72,187.61,28.83787089]
[1736643561179,6.4286,187.72,187.62,8.83787089]
[1736643569702,6.4286,187.72,187.61,20.0]
[1736643569907,6.4286,187.72,187.62,8.83787089]
[1736643571206,51.43598554,187.71,187.62,8.83787089]
[1736643573191,51.43598554,187.71,187.6,8.83787089]
[1736643573998,51.43598554,187.71,187.59,82.6]
[1736643574206,51.43598554,187.71,187.6,8.83787089]
[1736643574799,51.43598554,187.71,187.61,8.83787089]
[1736643575714,51.43598554,187.71,187.63,8.83787089]
[1736643576483,51.43598554,187.71,187.64,8.83787089]
[1736643576714,51.43598554,187.69,187.63,8.83787089]
[1736643577725,51.43598554,187.71,187.65,8.83787089]
[1736643579911,51.43598554,187.71,187.6,106.376884]
[1736643580228,51.43598554,187.71,187.62,8.83787089]
[1736643581525,51.43598554,187.71,187.61,8.83787089]
[1736643581700,51.43598554,187.71,187.62,8.83787089]
[1736643583099,51.43598554,187.7,187.58,1.6367]
[1736643583411,51.43598554,187.7,187.6,8.83787089]
[1736643585125,51.43598554,187.7,187.61,8.83787089]
[1736643585506,51.43598554,187.7,187.62,8.83787089]
[1736643586414,51.43598554,187.7,187.59,24.57624484]
[1736643586415,51.43598554,187.7,187.61,8.83787089]
[1736643586607,51.43598554,187.7,187.53,50.83573268]
[1736643586608,54.09998554,187.69,187.59,8.83787089]
[1736643587123,51.43598554,187.68,187.58,8.83787089]
[1736643591425,2.10297529,187.71,187.55,21.349611]
[1736643591426,51.43598554,187.63,187.55,21.349611]
[1736643591730,51.43598554,187.63,187.55,8.83787089]
[1736643593721,51.43598554,187.62,187.55,8.83787089]
[1736643597647,51.43598554,187.62,187.56,8.83787089]
[1736643600743,51.43598554,187.62,187.57,8.83787089]
[1736643601341,51.43598554,187.62,187.56,8.83787089]
[1736643605617,51.43598554,187.62,187.58,8.83787089]
[1736643607049,51.43598554,187.62,187.6,8.83787089]
[1736643607259,51.43598554,187.68,187.61,8.83787089]
[1736643607424,51.43598554,187.68,187.64,8.83787089]
[1736643607618,6.3907,187.71,187.64,8.83787089]
[1736643607814,51.43598554,187.74,187.64,8.83787089]
[1736643608048,51.43598554,187.74,187.67,8.83787089]
[1736643608357,20.0,187.71,187.67,8.83787089]
[1736643608949,20.0,187.71,187.66,8.83787089]
[1736643609163,20.0,187.71,187.62,1.5123]
[1736643609453,20.0,187.71,187.61,8.83787089]
[1736643609954,20.0,187.71,187.58,0.79934858]
[1736643610158,20.0,187.71,187.61,8.83787089]
[1736643610330,2.6638,187.7,187.57,1.5123]
[1736643610658,2.6638,187.7,187.59,8.83787089]
[1736643610837,20.0,187.65,187.57,10.35017089]
[1736643611746,20.0,187.65,187.59,8.83787089]
[1736643611942,20.0,187.65,187.6,8.83787089]
[1736643613152,6.3907,187.67,187.6,8.83787089]
[1736643613329,51.43598554,187.68,187.62,8.83787089]
[1736643613753,51.43598554,187.68,187.61,8.83787089]
[1736643615127,51.43598554,187.68,187.6,8.83787089]
[1736643615329,51.43598554,187.67,187.59,8.83787089]
[1736643615854,51.43598554,187.67,187.6,8.83787089]
[1736643618952,51.43598554,187.67,187.59,8.83787089]
[1736643619155,9.0544,187.71,187.59,8.83787089]
[1736643619156,51.43598554,187.66,187.59,8.83787089]
[1736643620854,51.43598554,187.69,187.62,8.83787089]
[1736643621459,51.43598554,187.69,187.63,8.83787089]
[1736643621762,51.43598554,187.73,187.66,8.83787089]
[1736643621946,51.43598554,187.73,187.67,8.83787089]
[1736643623758,51.43598554,187.73,187.66,8.83787089]
[1736643623959,51.43598554,187.73,187.64,8.83787089]
[1736643624168,8.7026,187.75,187.57,14.8404]
[1736643624169,51.43598554,187.7,187.57,14.8404]
[1736643624370,51.43598554,187.7,187.61,8.83787089]
[1736643628062,51.43598554,187.69,187.61,8.83787089]
[1736643628378,51.43598554,187.72,187.66,8.83787089]
[1736643628740,51.43598554,187.74,187.66,8.83787089]
[1736643629271,20.0,187.71,187.67,8.83787089]
[1736643630546,20.0,187.71,187.66,8.83787089]
[1736643630747,20.0,187.71,187.65,8.83787089]
[1736643631573,20.0,187.71,187.63,8.83787089]
[1736643631753,20.0,187.71,187.62,8.83787089]
[1736643634153,51.43598554,187.7,187.62,8.83787089]
[1736643635052,51.43598554,187.69,187.61,8.83787089]
[1736643635253,51.43598554,187.69,187.62,8.83787089]
[1736643635463,51.43598554,187.69,187.63,8.83787089]
[1736643643600,51.43598554,187.69,187.62,8.83787089]
[1736643644393,51.43598554,187.68,187.59,103.94745]
[1736643644597,51.43598554,187.68,187.59,112.78532089]
[1736643645066,51.43598554,187.68,187.59,91.43787089]
[1736643645266,51.43598554,187.65,187.53,92.55026678]
[1736643645594,51.43598554,187.64,187.57,8.83787089]
[1736643648670,51.43598554,187.64,187.58,8.83787089]
[1736643648874,51.43598554,187.64,187.6,8.83787089]
[1736643649080,6.5163,187.68,187.56,0.79953782]
[1736643649081,51.43598554,187.67,187.62,8.83787089]
[1736643649282,51.43598554,187.71,187.64,8.83787089]
[1736643649484,51.43598554,187.7,187.65,8.83787089]
[1736643650403,51.43598554,187.69,187.64,8.83787089]
[1736643654316,51.43598554,187.69,187.65,8.83787089]
[1736643654477,51.43598554,187.69,187.66,8.83787089]
[1736643655304,6.5163,187.73,187.66,8.83787089]
[1736643655891,20.0,187.73,187.67,8.83787089]
[1736643656884,51.43598554,187.75,187.7,8.83787089]
[1736643657477,51.43598554,187.78,187.71,8.83787089]
[1736643658008,51.43598554,187.78,187.68,1.5224]
[1736643658309,51.43598554,187.78,187.68,10.36027089]
[1736643660703,51.43598554,187.78,187.69,8.83787089]
[1736643661001,51.43598554,187.77,187.69,8.83787089]
[1736643661308,51.43598554,187.77,187.68,15.33858455]
[1736643662425,51.43598554,187.77,187.68,1.5224]
[1736643662708,5.3245,187.81,187.65,13.81618455]
[1736643662709,51.43598554,187.75,187.65,13.81618455]
[1736643662905,2.6629,187.76,187.65,13.81618455]
[1736643662906,51.43598554,187.73,187.65,13.81618455]
[1736643664417,51.43598554,187.73,187.67,13.81618455]
[1736643664597,51.43598554,187.73,187.68,13.81618455]
[1736643665820,51.43598554,187.73,187.67,13.81618455]
[1736643667451,51.43598554,187.73,187.66,13.81618455]
[1736643668919,51.43598554,187.73,187.67,13.81618455]
[1736643669415,51.43598554,187.75,187.69,13.81618455]
[1736643670016,51.43598554,187.75,187.7,13.81618455]
[1736643672021,51.43598554,187.75,187.71,13.81618455]
[1736643672525,51.43598554,187.75,187.7,13.81618455]
[1736643674228,51.43598554,187.75,187.69,27.63236955]
[1736643674398,51.43598554,187.75,187.69,13.81618455]
[1736643675323,51.43598554,187.75,187.67,13.81618455]
[1736643675632,20.0,187.72,187.66,82.6]
[1736643675813,51.43598554,187.71,187.63,15.37418455]
[1736643676126,51.43598554,187.71,187.65,21.343414]
[1736643676421,51.43598554,187.71,187.63,13.81618455]
[1736643676923,51.43598554,187.71,187.64,13.81618455]
[1736643678623,51.43598554,187.71,187.63,13.81618455]
[1736643679034,51.43598554,187.7,187.63,13.81618455]
[1736643681239,51.43598554,187.7,187.62,21.343414]
[1736643681405,51.43598554,187.7,187.58,1.6048]
[1736643681604,51.43598554,187.7,187.6,8.84936833]
[1736643683930,51.43598554,187.68,187.59,21.349289]
[1736643684148,20.0,187.65,187.57,8.84936833]
[1736643684328,20.0,187.65,187.57,30.19865733]
[1736643685241,20.0,187.65,187.58,8.84936833]
[1736643685416,20.0,187.65,187.58,13.8313247]
[1736643685617,20.0,187.65,187.57,13.8313247]
[1736643687352,20.0,187.65,187.59,13.8313247]
[1736643687960,51.43598554,187.64,187.59,13.8313247]
[1736643689357,51.43598554,187.64,187.57,13.8313247]
[1736643690354,51.43598554,187.63,187.56,13.8313247]
[1736643692257,51.43598554,187.63,187.57,13.8313247]
[1736643697643,20.0,187.65,187.56,13.8313247]
[1736643697644,51.43598554,187.62,187.56,13.8313247]
[1736643697964,51.43598554,187.61,187.55,13.8313247]
[1736643700065,51.43598554,187.61,187.57,13.8313247]
[1736643703768,51.43598554,187.61,187.55,13.8313247]
[1736643705888,51.43598554,187.6,187.51,13.8313247]
[1736643706184,51.43598554,187.59,187.5,13.8313247]
[1736643706481,51.43598554,187.59,187.51,13.8313247]
[1736643707339,51.43598554,187.59,187.51,8.85875763]
[1736643707764,51.43598554,187.59,187.53,8.85875763]
[1736643707977,51.43598554,187.59,187.55,8.85875763]
[1736643708751,51.43598554,187.62,187.56,8.85875763]
[1736643711681,51.43598554,187.62,187.55,8.85875763]
[1736643712179,51.43598554,187.62,187.53,8.85875763]
[1736643712676,51.43598554,187.62,187.52,8.85875763]
[1736643712883,51.43598554,187.62,187.53,8.85875763]
[1736643714881,51.43598554,187.61,187.53,8.85875763]
[1736643715781,51.43598554,187.6,187.49,14.8738]
[1736643716080,51.43598554,187.6,187.52,8.85875763]
[1736643716385,51.43598554,187.6,187.53,8.85875763]
[1736643718591,51.43598554,187.6,187.52,8.85875763]
[1736643720889,51.43598554,187.59,187.52,8.85875763]
[1736643722688,51.43598554,187.59,187.49,1.54]
[1736643722880,51.43598554,187.59,187.5,8.85875763]
[1736643723687,51.43598554,187.56,187.44,82.6]
[1736643723907,51.43598554,187.56,187.46,8.85875763]
[1736643724080,51.43598554,187.56,187.47,8.85875763]
[1736643725202,51.43598554,187.55,187.48,8.85875763]
[1736643725904,51.43598554,187.55,187.44,83.39996123]
[1736643726073,51.43598554,187.55,187.47,8.85875763]
[1736643726274,51.43598554,187.55,187.46,8.85875763]
[1736643727536,51.43598554,187.55,187.47,8.85875763]
[1736643727720,51.43598554,187.55,187.49,8.85875763]
[1736643728676,51.43598554,187.55,187.48,8.85875763]
[1736643734705,51.43598554,187.55,187.44,83.40004754]
[1736643734914,51.43598554,187.55,187.46,8.85875763]
[1736643735094,51.43598554,187.55,187.47,8.85875763]
[1736643737006,51.43598554,187.54,187.49,8.85875763]
[1736643737193,51.43598554,187.54,187.5,8.85875763]
[1736643737519,51.43598554,187.54,187.51,8.85875763]
[1736643738002,51.43598554,187.54,187.5,8.85875763]
[1736643738519,51.43598554,187.54,187.47,8.85875763]
[1736643738819,51.43598554,187.54,187.46,8.85875763]
[1736643738994,51.43598554,187.54,187.47,8.85875763]
[1736643741917,51.43598554,187.53,187.47,8.85875763]
[1736643742121,51.43598554,187.56,187.49,8.85875763]
[1736643742316,51.43598554,187.56,187.52,8.85875763]
[1736643742613,51.43598554,187.56,187.47,35.43503052]
[1736643742614,51.43598554,187.56,187.53,8.85875763]
[1736643742823,51.43598554,187.61,187.54,8.85875763]
[1736643742982,6.6593,187.63,187.56,8.85875763]
[1736643743317,6.6593,187.63,187.57,8.85875763]
[1736643743811,20.0,187.62,187.57,8.85875763]
[1736643744124,20.0,187.62,187.55,8.85875763]
[1736643744715,20.0,187.62,187.54,8.85875763]
[1736643745076,20.0,187.62,187.53,8.85875763]
[1736643745314,20.0,187.62,187.52,8.85875763]
[1736643747115,6.3316,187.61,187.51,8.85875763]
[1736643747910,57.76758554,187.61,187.51,8.85875763]
[1736643749112,57.76758554,187.61,187.52,8.85875763]
[1736643750916,57.76758554,187.61,187.53,8.85875763]
[1736643753899,51.43598554,187.6,187.53,8.85875763]
[1736643756401,51.43598554,187.6,187.54,8.85875763]
[1736643756604,51.43598554,187.6,187.55,8.85875763]
[1736643757549,51.43598554,187.6,187.54,8.85875763]
[1736643757698,51.43598554,187.6,187.53,8.85875763]
[1736643759427,51.43598554,187.6,187.51,8.85875763]
[1736643759832,51.43598554,187.59,187.51,8.85875763]
[1736643761936,51.43598554,187.59,187.5,8.85875763]
[1736643762239,51.43598554,187.58,187.46,13.3359]
[1736643762542,2.6654,187.59,187.46,8.85875763]
[1736643762543,51.43598554,187.56,187.46,8.85875763]
[1736643762733,51.43598554,187.56,187.45,8.85875763]
[1736643763638,54.10178554,187.56,187.45,8.85875763]
[1736643764008,57.46488554,187.55,187.45,8.85875763]
[1736643764232,57.46488554,187.55,187.46,8.85875763]
[1736643764932,57.46488554,187.55,187.44,1.583]
[1736643765132,57.46488554,187.55,187.46,8.85875763]
[1736643768024,51.43598554,187.53,187.4,13.3403]
[1736643768220,51.43598554,187.52,187.44,8.85875763]
[1736643770721,51.43598554,187.51,187.4,13.3403]
[1736643771036,51.43598554,187.51,187.43,8.85875763]
[1736643772743,51.43598554,187.5,187.4,13.3403]
[1736643772922,51.43598554,187.46,187.36,8.33076678]
[1736643773529,51.43598554,187.46,187.37,8.85875763]
[1736643773725,51.43598554,187.45,187.38,8.85875763]
[1736643774043,51.43598554,187.43,187.35,8.85875763]
[1736643775446,51.43598554,187.43,187.34,8.85875763]
[1736643775635,51.43598554,187.43,187.35,8.85875763]
[1736643775836,51.43598554,187.43,187.36,8.85875763]
[1736643778147,51.43598554,187.43,187.35,8.85875763]
[1736643779844,23.776884,187.42,187.31,1.583]
[1736643780063,23.776884,187.42,187.35,8.85875763]
[1736643780440,23.776884,187.42,187.34,8.85875763]
[1736643780945,23.776884,187.42,187.31,1.583]
[1736643781146,23.776884,187.42,187.33,8.85875763]
[1736643782057,20.0,187.37,187.26,21.382741]
[1736643782354,23.776884,187.35,187.26,8.85875763]
[1736643782741,23.776884,187.35,187.27,8.85875763]
[1736643783152,20.0,187.36,187.31,8.85875763]
[1736643783325,6.0942,187.41,187.27,0.80086021]
[1736643783326,6.0942,187.41,187.34,8.85875763]
[1736643783827,23.776884,187.4,187.34,8.85875763]
[1736643784365,23.776884,187.4,187.32,8.85875763]
[1736643785353,23.776884,187.4,187.33,8.85875763]
[1736643785559,6.0942,187.41,187.34,8.85875763]
[1736643785928,6.0942,187.41,187.33,8.85875763]
[1736643786440,23.776884,187.4,187.32,8.85875763]
[1736643786847,23.776884,187.4,187.31,8.85875763]
[1736643790167,23.776884,187.38,187.29,8.85875763]
[1736643791050,23.776884,187.38,187.3,8.85875763]
[1736643791571,23.776884,187.36,187.3,8.85875763]
[1736643791749,23.776884,187.36,187.29,8.85875763]
[1736643792150,23.776884,187.36,187.23,21.38672]
[1736643792368,20.0,187.34,187.22,6.4461]
[1736643792667,20.0,187.34,187.26,8.85875763]
[1736643793938,51.43598554,187.37,187.29,8.85875763]
[1736643794149,6.0942,187.41,187.32,8.85875763]
[1736643794534,20.0,187.37,187.31,8.85875763]
[1736643794738,20.0,187.37,187.3,8.85875763]
[1736643795470,20.0,187.37,187.29,8.85875763]
[1736643795767,23.776884,187.36,187.29,8.85875763]
[1736643796065,23.776884,187.36,187.28,8.85875763]
[1736643796478,23.776884,187.36,187.27,8.85875763]
[1736643796982,23.776884,187.36,187.26,8.85875763]
[1736643797463,23.776884,187.36,187.27,8.85875763]
[1736643798471,2.6684,187.38,187.27,8.85875763]
[1736643798472,23.776884,187.34,187.27,8.85875763]
[1736643798768,30.025184,187.34,187.26,8.85875763]
[1736643798938,30.025184,187.34,187.25,8.85875763]
[1736643799535,30.025184,187.34,187.26,8.85875763]
[1736643801477,23.776884,187.3,187.25,8.85875763]
[1736643803245,20.0,187.31,187.26,8.85875763]
[1736643804253,23.776884,187.3,187.24,8.85875763]
[1736643804561,20.0,187.31,187.26,8.85875763]
[1736643806757,6.2483,187.34,187.27,8.85875763]
[1736643807059,23.776884,187.33,187.28,8.85875763]
[1736643807378,23.776884,187.33,187.27,8.85875763]
[1736643807684,23.776884,187.33,187.26,8.85875763]
[1736643809288,23.776884,187.33,187.28,8.85875763]
[1736643809583,23.776884,187.34,187.28,8.85875763]
[1736643810292,23.776884,187.34,187.27,8.85875763]
[1736643810461,23.776884,187.34,187.26,8.85875763]
[1736643810856,23.776884,187.34,187.27,8.85875763]
[1736643811366,23.776884,187.34,187.28,8.85875763]
[1736643811562,51.43598554,187.35,187.28,8.85875763]
[1736643811873,57.68428554,187.39,187.25,1.75229]
[1736643812065,33.36137303,187.54,187.35,8.85875763]
[1736643812066,60.35198554,187.43,187.35,8.85875763]
[1736643812392,20.0,187.4,187.35,8.85875763]
[1736643813988,51.43598554,187.43,187.37,8.85875763]
[1736643814698,51.43598554,187.43,187.36,8.85875763]
[1736643815280,51.43598554,187.43,187.37,8.85875763]
[1736643815991,51.43598554,187.43,187.36,8.85875763]
[1736643816896,23.776884,187.42,187.32,1.6268]
[1736643817197,23.776884,187.42,187.34,8.85875763]
[1736643817985,23.776884,187.42,187.35,8.85875763]
[1736643818292,51.43598554,187.43,187.36,8.85875763]
[1736643818599,51.43598554,187.43,187.37,8.85875763]
[1736643821297,51.43598554,187.43,187.36,8.85875763]
[1736643822671,51.43598554,187.43,187.34,8.85875763]
[1736643822672,23.776884,187.42,187.34,8.85875763]
[1736643823097,51.43598554,187.43,187.36,8.85875763]
[1736643827894,51.43598554,187.43,187.35,8.85875763]
[1736643830691,51.43598554,187.43,187.32,1.6268]
[1736643830875,23.776884,187.42,187.32,1.6268]
[1736643831195,23.776884,187.42,187.33,8.85875763]
[1736643832408,20.0,187.38,187.32,1.6268]
[1736643832581,20.0,187.38,187.27,19.7191]
[1736643832582,23.776884,187.39,187.3,8.85875763]
[1736643834701,23.776884,187.39,187.32,8.85875763]
[1736643838306,20.0,187.37,187.31,8.85875763]
[1736643838608,51.43598554,187.39,187.31,8.85875763]
[1736643839388,51.43598554,187.38,187.29,8.85875763]
[1736643845609,51.43598554,187.38,187.34,8.85875763]
[1736643845912,51.43598554,187.43,187.37,8.85875763]
[1736643846113,20.0,187.41,187.38,8.85875763]
[1736643846792,20.0,187.41,187.39,8.85875763]
[1736643847086,17.46566893,187.44,187.39,8.85875763]
[1736643848500,17.46566893,187.44,187.38,8.85875763]
[1736643848822,17.46566893,187.44,187.37,8.85875763]
[1736643850998,17.46566893,187.44,187.39,8.85875763]
[1736643851913,17.46566893,187.44,187.38,8.85875763]
[1736643852114,17.46566893,187.44,187.37,8.85875763]
[1736643854626,17.46566893,187.44,187.34,1.5501]
[1736643854627,51.43598554,187.43,187.35,8.85875763]
[1736643854996,51.43598554,187.43,187.34,10.40885763]
[1736643855294,26.444684,187.42,187.34,10.40885763]
[1736643855523,20.0,187.37,187.29,1.5501]
[1736643855692,20.0,187.37,187.3,8.85875763]
[1736643856487,57.78588554,187.41,187.29,1.5501]
[1736643856488,20.0,187.38,187.29,1.5501]
[1736643856692,20.0,187.38,187.28,8.85875763]
[1736643857628,23.776884,187.37,187.28,8.85875763]
[1736643857798,20.0,187.36,187.27,8.85875763]
[1736643858810,20.0,187.36,187.26,8.85875763]
[1736643860422,20.0,187.36,187.27,8.85875763]
[1736643863002,23.776884,187.35,187.25,10.443058]
[1736643863319,23.776884,187.35,187.26,8.85875763]
[1736643863695,23.776884,187.35,187.25,10.44305763]
[1736643863905,23.776884,187.35,187.26,8.85875763]
[1736643864102,20.0,187.32,187.26,8.85875763]
[1736643867954,20.0,187.32,187.27,8.85875763]
[1736643870550,20.0,187.32,187.26,8.85875763]
[1736643877947,20.0,187.32,187.27,8.85875763]
[1736643878642,20.0,187.32,187.23,10.443058]
[1736643878946,20.0,187.32,187.26,8.85875763]
[1736643879655,20.0,187.32,187.25,8.85875763]
[1736643880747,20.0,187.32,187.24,8.85875763]
[1736643882944,20.0,187.32,187.25,8.85875763]
[1736643884329,57.91228554,187.34,187.3,8.85875763]
[1736643884330,51.43598554,187.34,187.3,8.85875763]
[1736643884641,51.43598554,187.37,187.33,8.85875763]
[1736643884946,51.43598554,187.42,187.34,8.85875763]
[1736643885200,23.776884,187.41,187.35,8.85875763]
[1736643885329,20.0,187.38,187.35,8.85875763]
[1736643886362,20.0,187.38,187.29,35.43503052]
[1736643886363,20.0,187.38,187.34,8.85875763]
[1736643886654,20.0,187.38,187.32,8.85875763]
[1736643886860,20.0,187.38,187.31,8.85875763]
[1736643888360,20.0,187.37,187.29,8.85875763]
[1736643889660,22.6685,187.37,187.29,8.85875763]
[1736643889862,22.6685,187.37,187.3,8.85875763]
[1736643891782,51.43598554,187.36,187.3,8.85875763]
[1736643894478,51.43598554,187.36,187.31,8.85875763]
[1736643896090,51.43598554,187.36,187.3,8.85875763]
[1736643897575,51.43598554,187.36,187.31,8.85875763]
[1736643897888,51.43598554,187.39,187.33,8.85875763]
[1736643898060,6.1532,187.43,187.35,8.85875763]
[1736643898061,51.43598554,187.42,187.35,8.85875763]
[1736643898981,20.0,187.39,187.35,8.85875763]
[1736643899179,20.0,187.39,187.34,8.85875763]
[1736643900288,20.0,187.39,187.33,8.85875763]
[1736643900580,20.0,187.39,187.34,8.85875763]
[1736643904986,20.0,187.39,187.33,8.85875763]
[1736643905887,20.0,187.39,187.31,8.85875763]
[1736643906459,20.0,187.37,187.31,8.85875763]
[1736643907494,20.0,187.37,187.32,8.85875763]
[1736643908568,20.0,187.37,187.31,8.85875763]
[1736643909792,20.0,187.37,187.27,1.6408]
[1736643909979,75.21286954,187.36,187.27,1.6408]
[1736643910192,20.0,187.33,187.23,1.5926]
[1736643910487,20.0,187.33,187.25,8.85875763]
[1736643911197,20.0,187.33,187.28,8.85875763]
[1736643911700,20.0,187.33,187.29,8.85875763]
[1736643912771,20.0,187.33,187.23,22.39354058]
[1736643912971,20.0,187.33,187.29,8.85875763]
[1736643913197,51.43598554,187.36,187.29,8.85875763]
[1736643914704,51.43598554,187.36,187.28,8.85875763]
[1736643914877,54.10478554,187.35,187.27,8.85875763]
[1736643917498,51.43598554,187.34,187.25,8.85875763]
[1736643918589,2.669,187.33,187.25,8.85875763]
[1736643922303,2.669,187.33,187.2,6.87331652]
[1736643922503,2.669,187.33,187.24,8.85875763]
[1736643922910,75.21286954,187.32,187.24,8.85875763]
[1736643925707,51.43598554,187.32,187.26,8.85875763]
[1736643926009,51.43598554,187.32,187.29,8.85875763]
[1736643927209,51.43598554,187.35,187.29,8.85875763]
[1736643927388,6.2326,187.38,187.32,8.85875763]
[1736643927582,20.0,187.35,187.32,8.85875763]
[1736643927921,20.0,187.35,187.33,8.85875763]
[1736643929715,20.0,187.35,187.32,8.85875763]
[1736643931308,20.0,187.35,187.31,8.85875763]
[1736643932735,20.0,187.35,187.3,8.85875763]
[1736643932887,20.0,187.35,187.29,8.85875763]
[1736643933818,20.0,187.35,187.31,8.85875763]
[1736643933997,51.43598554,187.37,187.32,8.85875763]
[1736643934323,51.43598554,187.41,187.34,8.85875763]
[1736643934490,20.0,187.38,187.34,8.85875763]
[1736643937614,51.43598554,187.41,187.34,8.85875763]
[1736643938516,51.43598554,187.41,187.36,8.85875763]
[1736643939210,17.46566893,187.44,187.37,8.85875763]
[1736643939407,17.46566893,187.44,187.39,8.85875763]
[1736643940696,17.46566893,187.44,187.4,8.85875763]
[1736643940894,17.46566893,187.44,187.39,8.85875763]
[1736643941537,17.46566893,187.44,187.38,10.39475763]
[1736643941733,17.46566893,187.44,187.35,8.85875763]
[1736643942437,17.46566893,187.44,187.37,8.85875763]
[1736643942617,17.46566893,187.44,187.38,8.85875763]
[1736643942820,17.46566893,187.44,187.39,8.85875763]
[1736643944043,17.46566893,187.44,187.4,8.85875763]
[1736643944424,17.46566893,187.44,187.39,8.85875763]
[1736643944812,17.46566893,187.44,187.4,8.85875763]
[1736643946342,20.0,187.45,187.4,8.85875763]
[1736643949049,20.0,187.45,187.38,8.85875763]
[1736643950353,20.0,187.45,187.39,8.85875763]
[1736643951651,20.0,187.45,187.38,8.85875763]
[1736643951954,20.0,187.45,187.36,8.85875763]
[1736643952949,20.0,187.45,187.37,8.85875763]
[1736643953142,20.0,187.45,187.39,8.85875763]
[1736643953455,51.43598554,187.48,187.42,8.85875763]
[1736643954633,51.43598554,187.48,187.41,8.85875763]
[1736643955459,51.43598554,187.48,187.4,8.85875763]
[1736643956147,51.43598554,187.48,187.37,20.0]
[1736643956355,51.43598554,187.48,187.41,8.85875763]
[1736643956523,51.43598554,187.48,187.42,8.85875763]